Workbook

Sheet 24 ноября
J1: Утверждаю:
J2: Директор школы | M2: Н.П.Семенов
F4: МЕНЮ ДНЯ | L4: ='[1]14'!$B$1 -> 24 | M4: ноябрь | N4: 2025 год.
E6: МБОУ"ПАВЛОВСКАЯ СОШ"
A7: 14
A8: ПРИЕМ | B8: РАЗДЕЛ | C8: № РЕЦ. | D8: БЛЮДО | I8: ВЫХОД | J8: ЦЕНА | K8: КАЛОРИЙ | L8: БЕЛКИ | M8: ЖИРЫ | N8: УГЛЕВО
A9: ПИЩИ | I9: г | K9: НОСТЬ | N9: ДЫ
D10: 7-11 лет
A11: ЗАВТРАК | C11: 91№210 | D11: ='[2]14'!$B$7 -> 0 | J11: ='[2]14'!$BK$7 -> 0.00
C12: №8 | D12: ='[2]14'!$B$8 -> БЛИНЫ С ПОВИДЛОМ | I12: 150\10 | J12: ='[2]14'!$BK$8 -> 3.22 | K12: 433 | L12: 11.4 | M12: 20.2 | N12: 49.9
C13: 300 | D13: ='[2]14'!$B$9 -> КОФЕЙНЫЙ НАПИТОК | I13: 200 | J13: ='[2]14'!$BK$9 -> 2.54 | K13: 94 | L13: 2.9 | M13: 2.8 | N13: 18.5
I14: =SUM(I11:I13) -> 200 | J14: =SUM(J11:J13) -> 5.76 | K14: =SUM(K11:K13) -> 527 | L14: =SUM(L11:L13) -> 14.3 | M14: =SUM(M11:M13) -> 23 | N14: =SUM(N11:N13) -> 68.4
D15: от 12 и старше лет
C16: 91№210 | D16: ='[2]14'!$B$21 -> 0 | J16: ='[2]14'!$BK$21 -> 0.00
C17: №8 | D17: ='[2]14'!$B$22 -> БЛИНЫ С ПОВИДЛОМ | I17: 150\10 | J17: ='[2]14'!$BK$22 -> 3.22 | K17: 433 | L17: 11.4 | M17: 20.2 | N17: 49.9
C18: 300 | D18: ='[2]14'!$B$23 -> КОФЕЙНЫЙ НАПИТОК | I18: 200 | J18: ='[2]14'!$BK$23 -> 2.54 | K18: 94 | L18: 2.9 | M18: 2.8 | N18: 18.5
D19: ИТОГО | I19: =SUM(I16:I18) -> 200 | J19: =SUM(J16:J18) -> 5.76 | K19: =SUM(K16:K18) -> 527 | L19: =SUM(L16:L18) -> 14.3 | M19: =SUM(M16:M18) -> 23 | N19: =SUM(N16:N18) -> 68.4
A21: ОБЕД | D21: от 12 и старше лет
D22: ='[1]14'!$B$21 -> 0 | J22: ='[1]14'!$BK$21 -> 0.00
C23: 1№11(20) | D23: ='[1]14'!$B$22 -> САЛАТ ИЗ Б\К КВАШ,КАПУСТЫ | I23: 100 | J23: ='[1]14'!$BK$22 -> 1.20 | K23: 60 | L23: 86 | M23: 1.6 | N23: 5
C24: 83№63(1) | D24: ='[1]14'!$B$23 -> СУП КАРТОФЕЛЬНЫЙ С ПШЕНОМ | I24: 250 | J24: ='[1]14'!$BK$23 -> 4.19 | K24: 250 | L24: 113 | M24: 2.6 | N24: 2.1
C25: 181№136 | D25: ='[1]14'!$B$24 -> КОТЛЕТА ИЗ МЯСА ПТИЦЫ РУБ. | I25: 120 | J25: ='[1]14'!$BK$24 -> 49.14 | K25: 433 | L25: 382 | M25: 18 | N25: 25.7
C26: 68№167 | D26: ='[1]14'!$B$25 -> КАША РИСОВАЯ РАССЫПЧАТАЯ | I26: 180 | J26: ='[1]14'!$BK$25 -> 15.26 | L26: 248 | M26: 4.4 | N26: 4.7
C27: 207№310 | D27: ='[1]14'!$B$26 -> КОМПОТ ИЗ СУХОФРУКТОВ | I27: 200 | J27: ='[1]14'!$BK$26 -> 4.71 | K27: 200 | L27: 123 | M27: 0.5 | N27: 0.1
C28: №7 | D28: ='[1]14'!$B$27 -> ХЛЕБ | I28: 50 | J28: ='[1]14'!$BK$27 -> 3.00 | K28: 60 | L28: 108.6 | M28: 3.96 | N28: 0.72
D29: ='[3]5'!$B$27 -> 0 | J29: ='[4]12'!$BL$27 -> 0.00
D30: ИТОГО | I30: =SUM(I22:I29) -> 900 | J30: =SUM(J22:J29) -> 77.50 | K30: =SUM(K21:K29) -> 1003 | L30: =SUM(L21:L29) -> 1060.6 | M30: =SUM(M21:M29) -> 31.06 | N30: =SUM(N21:N29) -> 38.32
D32: Составил Агеева Г.Н. | L32: Повар Фролова Л.Н.
